Cogmind - Beta 16.1 @@@ ROGUE MODE // 2026.02.25 @ 22:52:59 // Winter2019/RPGLIKE Player: badjay Result: Destroyed by D-53 Grenadier with Mini Grenade Launcher Performance ------------- Evolutions (0) 0 Regions Visited (2) 400 Robots Destroyed (17) 85 Value Destroyed (404) 404 Prototype IDs (2) 40 Alien Tech Used (0) 0 Bonus (0) 0 TOTAL SCORE: 929 Bonus ------- None Cogmind --------- Core Integrity 0/600 Matter 252/300 Energy 250/250 System Corruption 0% Temperature Cool (36) Movement Flying (120) Ox1 Location -10/Mines Parts ------- > --- POWER (1) -------- Ion Engine > --- PROPULSION (2) --- Flight Unit > --- UTILITY (2) ------ Structural Scanner Targeting Computer > --- WEAPON (3) ------- Shotgun Shotgun Shotgun > --- INVENTORY (0) ---- (None) Peak State ------------ > --- POWER ------------ Ion Engine > --- PROPULSION ------- Flight Unit Flight Unit > --- UTILITY ---------- Structural Scanner Targeting Computer > --- WEAPON ----------- Shotgun Shotgun Shotgun > --- INVENTORY -------- (None) [Rating: 11] Favorites ----------- Power Ion Engine Engine Ion Engine Propulsion Flight Unit Flight Unit Flight Unit Utility Transport Network Coupler Device Structural Scanner Processor Transport Network Coupler Weapon Light Assault Rifle Ballistic Gun Light Assault Rifle Ballistic Cannon Light Cannon Build | -11 -10 -10 ------- Run | Yrd Mat Min Slots Evolved 4 | 3 . 1 Power . | . . . Propulsion 1 | 1 . . Utility 1 | . . 1 Weapon 2 | 2 . . Parts Attached 13 | 2 10 1 Power 1 | . 1 . Engine 1 | . 1 . Core . | . . . Reactor . | . . . Propulsion 2 | . 2 . Treads . | . . . Leg . | . . . Wheel . | . . . Hover . | . . . Flight 2 | . 2 . Utility 4 | . 3 1 Device 2 | . 2 . Storage . | . . . Processor 2 | . 1 1 Hackware . | . . . Protection . | . . . Artifact . | . . . Weapon 6 | 2 4 . Energy Gun . | . . . Energy Cannon . | . . . Ballistic Gun 5 | 2 3 . Ballistic Cannon 1 | . 1 . Launcher . | . . . Special Weapon . | . . . Impact Weapon . | . . . Slashing Weapon . | . . . Piercing Weapon . | . . . Special Melee Weapon . | . . . Unidentified Prototypes . | . . . Parts Lost 1 | . . 1 Power . | . . . Propulsion 1 | . . 1 Utility . | . . . Weapon . | . . . Highest Loss Streak 1 | . . 1 To Critical Strikes . | . . . Average Backups . | . . . Power . | . . . Propulsion . | . . . Utility . | . . . Weapon . | . . . Tool/Special . | . . . Unused Backups . | . . . Power . | . . . Propulsion . | . . . Utility . | . . . Weapon . | . . . Tool/Special . | . . . Average Slot Usage (%) 94 | . 93 98 Engine 12 | . 12 13 Flight 25 | . 25 25 Device 5 | . 3 13 Processor 7 | . 8 3 Ballistic Gun 31 | . 29 40 Ballistic Cannon 9 | . 11 . Peak Build Rating 11 | 2 10 11 Average Rating 7 | 1 7 10 On Entrance 4 | . 2 10 Avg Prop Armor Cover (%) . | . . . Naked Turns . | . . . Heaviest Build 15 | 2 15 15 Greatest Support 18 | 8 18 18 Greatest Overweight (x) 1 | . 1 1 Average Overweight (x) . | . . . Largest Inventory Capacity . | . . . Average Capacity . | . . . Most Carried . | . . . Average Carried . | . . . Final Capacity . | . . . Final Carried . | . . . Class Distribution -------------------- 92% | Gunner 7% | Mutant Dominant Class ---------------- Gunner | -10/Materials Gunner | -10/Mines Resources | -11 -10 -10 ----------- Run | Yrd Mat Min Matter Collected 666 | 105 551 10 Remotely . | . . . Salvage Created 416 | . 416 . Parts 32 | . 32 . Haulers Intercepted 2 | . 2 . Recyclers Shooed . | . . . Parts Field Recycled . | . . . Retrieved Matter . | . . . Parts Self-Destructed . | . . . Prevented . | . . . Parts Restored . | . . . Kills | -11 -10 -10 ------- Run | Yrd Mat Min Combat Hostiles Destroyed 13 | . 13 . Guns 9 | . 9 . Cannons 4 | . 4 . Classes Destroyed 5 | . 5 . Worker 1 | . 1 . Hauler 2 | . 2 . Watcher 1 | . 1 . Swarmer 3 | . 3 . Grunt 10 | . 10 . Best Kill Streak 6 | . 6 . Combat Bots Only 5 | . 5 . Max Kills in Single Turn 1 | . 1 . Gunslinging . | . . . Exploded . | . . . Melee . | . . . Uniques/NPCs Destroyed . | . . . Combat | -11 -10 -10 -------- Run | Yrd Mat Min Hostile Shots Fired 95 | . 77 18 Missed 28 | . 28 . Hits 67 | . 49 18 Projectile 67 | . 49 18 AOE 17 | . . 17 Damage Taken 1220 | . 539 681 Core 995 | . 441 554 Absorbed by Shields . | . . . Redirected to Core 770 | . 315 455 Core Remaining (%) 100 | 100 . . Volleys Fired 56 | . 52 4 Largest 3 | . 3 3 Hottest 70 | . 70 69 Shots Fired 168 | . 156 12 Gun 120 | . 108 12 Cannon 48 | . 48 . Launcher . | . . . Special . | . . . Kinetic 168 | . 156 12 Thermal . | . . . Explosive . | . . . Electromagnetic . | . . . Robot Hit Streak 8 | . 8 3 Robot Miss Streak 9 | . 9 4 Penetration Max . | . . . Secondary Targets . | . . . Shots Hit Robots 80 | . 71 9 Core Hits 33 | . 28 5 Critical Kills 1 | . 1 . Critical Parts Destroyed 1 | . 1 . Critical Strikes 3 | . 3 . Destroy 2 | . 2 . Blast 1 | . 1 . Melee Attacks . | . . . Impact . | . . . Slashing . | . . . Piercing . | . . . Sneak Attacks . | . . . Combat Hostiles . | . . . Follow-up Attacks . | . . . Damage Inflicted 1069 | . 921 148 Guns 616 | . 468 148 Cannons 453 | . 453 . Explosions . | . . . Melee . | . . . Ramming . | . . . Kinetic 1069 | . 921 148 Thermal . | . . . Explosive . | . . . Electromagnetic . | . . . Impact . | . . . Slashing . | . . . Piercing . | . . . Highest Corruption . | . . . Average Corruption . | . . . Corruption Purged . | . . . Corruption Blocked . | . . . Overload Shots . | . . . Overflow Damage . | . . . Projectiles . | . . . Explosions . | . . . Melee . | . . . Knockbacks 4 | . 4 . Impact . | . . . Kinetic 4 | . 4 . Secondary . | . . . Self-Inflicted Damage . | . . . Shots . | . . . Rammed . | . . . Targets Rammed . | . . . Kicked . | . . . Crushed . | . . . Highest Temperature 232 | . 232 36 Average Temperature 65 | . 68 17 Received Heat Transfer 240 | . 240 . Siege Activations . | . . . Martial Activations . | . . . Shielding Activations . | . . . Robots Disrupted . | . . . Combat Hostiles . | . . . Robots Corrupted . | . . . Combat Hostiles . | . . . Parts Fried . | . . . Impact Corruptions . | . . . Robots Melted . | . . . Combat Hostiles . | . . . Parts Melted . | . . . Heat Transferred . | . . . Parts Sabotaged . | . . . Parts Stolen . | . . . Parts Stripped . | . . . Power Chain Reactions . | . . . Alert | -11 -10 -10 ------- Run | Yrd Mat Min Maximum Alert Level 1 | . 1 . Low Security (%) 68 | 100 60 100 Level 1 31 | . 39 . Level 2 . | . . . Level 3 . | . . . Level 4 . | . . . Level 5 . | . . . High Security . | . . . Max Security . | . . . Peak Influence 246 | . 246 82 Initial 82 | . . 82 Average 134 | . 154 67 Influence Increases 425 | . 418 7 Destroy 0b10 Robot/C 260 | . 260 . Destroy 0b10 Robot/NC 20 | . 20 . Destroy Leader 56 | . 56 . Successful Hack 27 | . 20 7 Destroy Structure 2 | . 2 . Lose Combat Pursuer 60 | . 60 . Influence Decreases 386 | . 207 179 Entered New Map 129 | . . 129 Time Decay 247 | . 207 40 Lost Part 10 | . . 10 Squads Dispatched 3 | . 3 . Investigation 2 | . 2 . Extermination . | . . . Reinforcement 1 | . 1 . Assault . | . . . Garrison . | . . . Intercept . | . . . Searches Triggered . | . . . Construction Impeded . | . . . Haulers Reinforced . | . . . Active Scanning Responses . | . . . Cargo Convoy Interrupts . | . . . Stealth | -11 -10 -10 --------- Run | Yrd Mat Min Distress Signals 1 | . 1 . Communications Jammed . | . . . Distress Signals . | . . . Times Spotted 25 | . 22 3 Peak Tracking Total 7 | . 7 5 Tactical Retreats 2 | . 1 1 Traps | -11 -10 -10 ------- Run | Yrd Mat Min Traps Triggered 1 | . 1 . Indirectly . | . . . Trap Hack Attempts . | . . . Triggered . | . . . Disarmed . | . . . Reprogrammed . | . . . Reused . | . . . Traps Extracted . | . . . Installed . | . . . Triggered . | . . . Machines | -11 -10 -10 ---------- Run | Yrd Mat Min Machines Disabled . | . . . Max in Single Turn . | . . . Machines Repaired . | . . . Machines Dismantled . | . . . Machines Sabotaged . | . . . Overloaded Fab Kills . | . . . Hacking | -11 -10 -10 --------- Run | Yrd Mat Min Machines Accessed 8 | . 6 2 Terminals 7 | . 6 1 Fabricators . | . . . Repair Stations . | . . . Recycling Units . | . . . Scanalyzers . | . . . Garrison Access . | . . . Total Hacks 24 | . 18 6 Successful 10 | . 8 2 Failed 14 | . 10 4 Catastrophic 3 | . 2 1 Database Lockouts . | . . . Manual 19 | . 16 3 Terminals 23 | . 18 5 Fabricators . | . . . Repair Stations . | . . . Recycling Units . | . . . Scanalyzers . | . . . Garrison Access . | . . . Terminal Hacks 3 | . 1 2 Prototype ID Bank 1 | . 1 . Open Door 1 | . . 1 Level Access Points 1 | . . 1 Fabricator Hacks . | . . . Repair Station Hacks . | . . . Recycling Unit Hacks . | . . . Scanalyzer . | . . . Garrison Access Hacks . | . . . Unauthorized Hacks 7 | . 7 . Terminals 7 | . 7 . Botnet 2 | . 2 . Skim 5 | . 5 . Fabricators . | . . . Repair Stations . | . . . Recycling Units . | . . . Scanalyzers . | . . . Garrison Access . | . . . Data Cores Recovered . | . . . Used . | . . . Hacking Detections 7 | . 6 1 Full Trace Events 3 | . 2 1 Feedback Events . | . . . Feedback Blocked . | . . . Robot Schematics Acquired . | . . . Robots Built . | . . . Authchips . | . . . Time . | . . . Total Robot Build Rating . | . . . Part Schematics Acquired . | . . . Parts Built . | . . . Authchips . | . . . Time . | . . . Total Part Build Rating . | . . . Part Studies Acquired . | . . . Parts Repaired . | . . . Time . | . . . Parts Recycled . | . . . Recycled Matter . | . . . Retrieved Matter . | . . . Retrieved Components . | . . . Parts Scanalyzed . | . . . Part Schematics Acquired . | . . . Parts Damaged . | . . . Bothacking | -11 -10 -10 ------------ Run | Yrd Mat Min Used RIF Installer . | . . . Robots Hacked . | . . . Non-combat . | . . . Combat . | . . . Robot Hacks Applied . | . . . Relay Couplers Released . | . . . Fabnet Peak Effective % . | . . . Robots Rewired . | . . . Allies Hacked . | . . . Hacks Repelled . | . . . Allies | -11 -10 -10 -------- Run | Yrd Mat Min Total Allies . | . . . Largest Group . | . . . Highest-Rated Group . | . . . Highest-Rated Ally . | . . . Total Orders . | . . . Ally Attacks . | . . . Total Damage . | . . . Kills . | . . . Allies Corrupted . | . . . Allies Melted . | . . . Intel | -11 -10 -10 ------- Run | Yrd Mat Min Active Infowar (turns) 530 | . 443 87 Terrain 11 | . 11 . Structural 222 | . 135 87 T.N.C. 297 | . 297 . Robot Analysis Total . | . . . Derelict Logs Recovered 1 | . . 1 Drone Launches . | . . . Drone Recoveries . | . . . Exploration | -11 -10 -10 ------------- Run | Yrd Mat Min Turns Passed 613 | 31 495 87 Spaces Moved 932 | 56 685 191 Core 106 | 56 50 . Treads . | . . . Legs . | . . . Wheels . | . . . Hover . | . . . Flight 826 | . 635 191 Fastest Speed 37 | 50 37 37 Average Speed 38 | 50 38 37 Slowest Speed 120 | 50 117 120 Overloaded Moves . | . . . Propulsion Burnouts . | . . . Robots Hopped 19 | . 8 11 Potential Cave-ins . | . . . Cave-ins Triggered . | . . . Exploration Rate (%) 40 | 4 75 42 Regions Visited 2 Branch Regions 1 Pre-discovered Areas 1 | . . 1 Known Exits Taken . | . . . Unknown Exits Taken 2 | 1 1 . Scrap Searched 1 | . . 1 Spaces Dug . | . . . Terrain Destroyed . | . . . Melee . | . . . Projectile . | . . . AOE . | . . . Terrain Rammed . | . . . Walls Destroyed . | . . . Machines Disabled . | . . . Actions | -11 -10 -10 --------- Run | Yrd Mat Min Total 1052 | 57 809 186 Wait 53 | . 52 1 Move 895 | 55 669 171 Hop 16 | . 7 9 Pick Up . | . . . Fast Attach 8 | 2 5 1 Attach . | . . . Detach . | . . . Swap 5 | . 5 . Drop 2 | . 2 . Fire 56 | . 52 4 Melee . | . . . Ram . | . . . Kick . | . . . Crush . | . . . Escape Stasis . | . . . Rewire . | . . . Trap . | . . . Miscellaneous 17 | . 17 . Route ------- -11/Scrapyard -10/Materials (discovered 5 exits: *Mat x2 / *Min x2 / [*Sub]) -10/Mines (discovered 2 exits: *Mat x2) History --------- Turn | Location | Event 5 | -11/Scrapyard | Discovered new exit (range 15) 16 | -11/Scrapyard | Upgraded with Propulsion slot (x1) 16 | -11/Scrapyard | Upgraded with Weapon slot (x2) 32 | -11/Scrapyard | Entered Materials 54 | -10/Materials | Discovered new exit (range 16) 211 | -10/Materials | Discovered new exit (range 8) 257 | -10/Materials | Discovered new exit (range 12) 352 | -10/Materials | Build established: Gunner 400 | -10/Materials | Discovered new exit (range 16) 411 | -10/Materials | Reached level 2 488 | -10/Materials | Discovered new exit (range 10) 527 | -10/Materials | Entered Mines 543 | -10/Mines | Discovered new exit (range 5) 560 | -10/Mines | Identified exit to Materials 562 | -10/Mines | Assembled infested the area 586 | -10/Mines | Upgraded with Utility slot (x1) 597 | -10/Mines | Found the Drone Emporium 605 | -10/Mines | Core integrity fell below 50% 611 | -10/Mines | Core integrity fell below 20% 614 | -10/Mines | Destroyed by D-53 Grenadier with Mini Grenade Launcher Last Messages --------------- 00586_ Acquired Targeting Computer. 00588_ Acquired 10 matter. 00591_ The unstable cave ceiling collapses. 00593_ Acquired derelict log, extracted data. World map updated: -9/Materials. 00596_ Connecting with SHOP.Sys... >>Open Door Sealed Doors opened. 00597_ JL-EIP(g): "Well that was anticlimactic. Heard you outside and thought you were from the Merchants Guild. I haven't even officially opened my Drone Emporium yet but am totally ready to tell them where they can shove that C&D." 00599_ JL-EIP(g): "I'm a fan of the free market. Free drones for all! No strings attached!" 00600_ Flight Unit destroyed. 00602_ JL-EIP(g) destroyed. 00608_ SHOP.Sys disabled. 00613_ The unstable cave ceiling collapses. Map ----- +----------------------------------------------------+ | ???## ?## < ## #####???????? | | ? ### #### #### ######?????? | | #### #### ### #### ##### #####????? | | ## ## ### ###### ######## #####??? | | # ############ ###?###### #####?? | | #################????#### ###?? | | #################??????#### ##?? | | ###### ###?????????#### ##?? | | "% ##?????????#### ###?? | | ### ##?????????### ####?? | | #### ## ## ##????????### ###??? | | ?#### ## ## # ##???????#### ####?? | | ??#### ### ####### ##???????### ####? | | ???############# #######! ##???????## #### | | ????############ ##???##!%##???????## ### | | ??????????????## ##?#### ###??????## # ### | | ??????????????## ####### ########?## ## # ### | | ??????????????## ##### ########### ### # | | ??????????????## ### #""""########## ##### | | #####???????###### #### d " ! "##?###### ###### | | #####???????###### ### # d " "##?????## ##?### | | ##???????##T### #### ###?????######??## | | ## ########### ## ####?????######???# | | ## ########### # # ###?????????????? | | ## """ # ###?????????????? | | ############## """ # @ ##?????????????? | | ############## """ # # ##?????????????? | | ????????????######### ##?????????????? | | ????????????########## ##?????????????? | | ???????????????????#### ##?????????????? | | ????????????????????##### # ## #####?????????????? | | ?????????????????????###############?????????????? | | ???????????????????????##########????????????????? | | | | | | | | | | | | | | | | | | | | | | | | | | | | | | | | | | | +----------------------------------------------------+ Best States ------------- Heat Dissipation 25 Energy Generation 10 Energy Capacity 250 Matter Stores 300 Matter Capacity 300 Sight Range 16 Terrain Scan Range 14 Terrain Scan Density 10 Evasion (%) 62 Targeting Accuracy 5 Offensive Hacking 5 Defensive Hacking 10 Item Schematics ----------------- None Robot Schematics ------------------ None Fabricated ------------ Nothing Repaired ---------- Nothing Studied --------- None Alien Tech Used ----------------- None Achievements -------------- None Challenges ------------ None RPGLIKE | -11 -10 -10 --------- Run | Yrd Mat Min Levels Raised 1 | . 1 . XP Earned 5135 | 3000 1600 535 XP Spent 3900 | 1900 1500 500 Upgrades 9 | 4 4 1 Propulsion Slot 1 | 1 . . Utility Slot 1 | . . 1 Weapon Slot 2 | 2 . . Mass Support 2 | 1 1 . Hack Attack % 1 | . 1 . Hack Defense % 2 | . 2 . Protomatter Created 129 | . 129 . Integrity Restored 360 | . 360 . Core 360 | . 360 . Protomatter Decayed 48 | . 9 39 Game ------ Seed SuperchargedMyomerMinigun Manual? 0 Play Time 00:11:06 Cumulative 207.5 hours Start 2026.02.25 @ 22:42:25 End 2026.02.25 @ 22:52:59 Sessions 1 Manual Loads 0 Difficulty Rogue Special Mode Winter2019/RPGLIKE Game No. 211 Rogue 211 Adventurer 0 Explorer 0 Win Type - Total 14 Types 11/0/1/1/0/0/1/0/0/0 Lore% 67 Gallery% 57 Achievement% 51 Wizard Run 0 Options --------- Layout 2 ASCII 0 Keyboard 0 Movement Numpad Keybinds 0 Fullscreen 1 Font 24/Smallcaps Map View 50x44 Zoom Use 0% Tactical HUD 1 Map Filters NONE Filters NONE Steam 1 RUN: 8fa66842-053a-4feb-87d4-0de10d8d902b